bitfinex/quotes_BTCUSD_20240810
["timestamp","ask_amount","ask_price","bid_price","bid_amount"]
[1723282085431,0.0235,60930.0,60929.0,0.73111567]
[1723282085631,0.0225,60930.0,60929.0,0.72411567]
[1723282085994,0.0235,60930.0,60929.0,0.72711567]
[1723282086197,0.0235,60930.0,60929.0,0.73211567]
[1723282087453,0.0235,60930.0,60929.0,1.03574067]
[1723282088812,0.024332,60930.0,60929.0,1.0357333]
[1723282094009,0.024332,60930.0,60929.0,0.92692367]
[1723282094833,0.024332,60930.0,60929.0,0.89945831]
[1723282095066,0.024332,60930.0,60929.0,1.03573362]
[1723282095288,0.024332,60930.0,60929.0,1.04519898]
[1723282095652,0.024332,60930.0,60929.0,1.03573362]
[1723282096479,0.024332,60930.0,60929.0,0.89945831]
[1723282096689,0.024332,60930.0,60929.0,0.97373273]
[1723282100064,0.024332,60930.0,60929.0,0.89623273]
[1723282100707,0.024332,60930.0,60929.0,0.89623305]
[1723282106314,0.024332,60930.0,60929.0,1.09614989]
[1723282107340,0.024332,60930.0,60929.0,1.24334516]
[1723282107560,0.024332,60930.0,60929.0,0.90265831]
[1723282107761,0.024332,60930.0,60929.0,1.24334336]
[1723282108215,0.024332,60930.0,60929.0,1.24708037]
[1723282108377,0.024332,60930.0,60929.0,1.4174229]
[1723282111402,0.024332,60930.0,60929.0,1.4174223]
[1723282113422,0.024332,60930.0,60929.0,1.94221869]
[1723282113644,0.024332,60930.0,60929.0,2.06521869]
[1723282113856,0.024332,60930.0,60929.0,2.72521869]
[1723282114063,0.000832,60935.0,60934.0,0.91066436]
[1723282114278,0.000832,60935.0,60934.0,2.0988353]
[1723282114455,0.000832,60935.0,60934.0,1.96623785]
[1723282115026,0.000832,60935.0,60934.0,1.96611278]
[1723282115985,0.001832,60935.0,60934.0,1.98011278]
[1723282116203,0.000832,60935.0,60934.0,1.96611278]
[1723282116620,0.002832,60935.0,60934.0,1.99411278]
[1723282117131,0.002832,60935.0,60934.0,2.00382038]
[1723282118646,0.002832,60935.0,60934.0,2.00382576]
[1723282119051,0.002832,60935.0,60934.0,1.93570401]
[1723282119191,0.002832,60935.0,60934.0,2.00382701]
[1723282120476,0.002832,60935.0,60934.0,2.05241856]
[1723282121610,0.002832,60935.0,60934.0,2.00382701]
[1723282121807,0.002832,60935.0,60934.0,2.07671434]
[1723282122448,0.002832,60935.0,60934.0,2.10101012]
[1723282123145,0.002832,60935.0,60934.0,2.16793801]
[1723282123603,0.002832,60935.0,60934.0,2.31371268]
[1723282123804,0.002832,60935.0,60934.0,2.314373]
[1723282124408,0.002832,60935.0,60934.0,2.16792274]
[1723282124580,0.002832,60935.0,60934.0,2.9477293]
[1723282125207,0.002832,60935.0,60934.0,2.93792274]
[1723282126411,0.002832,60935.0,60934.0,2.99152955]
[1723282126755,0.002832,60935.0,60934.0,2.93792274]
[1723282126973,0.002832,60935.0,60934.0,3.43025274]
[1723282128979,0.002832,60935.0,60934.0,3.04504174]
[1723282129319,0.002832,60935.0,60934.0,3.12340573]
[1723282129467,0.002832,60935.0,60934.0,3.26989469]
[1723282129646,0.002832,60935.0,60934.0,3.09960245]
[1723282129848,0.002832,60935.0,60934.0,3.26989497]
[1723282130843,0.002832,60935.0,60934.0,3.12340601]
[1723282131200,0.002832,60935.0,60934.0,3.02072498]
[1723282132737,0.002832,60935.0,60934.0,2.25072498]
[1723282132940,0.002832,60935.0,60934.0,2.25076811]
[1723282135558,0.002832,60935.0,60934.0,2.25076928]
[1723282136378,0.002832,60935.0,60934.0,2.25077007]
[1723282138385,0.002832,60935.0,60934.0,2.49682728]
[1723282138791,0.002832,60935.0,60934.0,2.81725564]
[1723282139871,0.002832,60935.0,60934.0,2.65125724]
[1723282140288,0.002832,60935.0,60934.0,2.64145402]
[1723282140489,0.002832,60935.0,60934.0,2.66089113]
[1723282140704,0.002832,60935.0,60934.0,3.33089113]
[1723282140914,0.002832,60935.0,60934.0,3.31142577]
[1723282141354,0.002832,60935.0,60934.0,3.4579288]
[1723282141503,0.002832,60935.0,60934.0,3.31142577]
[1723282141705,0.002832,60935.0,60934.0,3.33089113]
[1723282141953,0.002832,60935.0,60934.0,3.45793074]
[1723282142146,0.002832,60935.0,60934.0,3.48719964]
[1723282142462,0.002832,60935.0,60934.0,3.57957841]
[1723282143743,0.002832,60935.0,60934.0,3.57958589]
[1723282145260,0.001832,60935.0,60934.0,3.56558589]
[1723282145580,0.001832,60935.0,60934.0,3.54612053]
[1723282145993,0.001832,60935.0,60934.0,3.26337447]
[1723282146202,0.002832,60935.0,60934.0,3.47742112]
[1723282146353,0.002832,60935.0,60934.0,3.41360987]
[1723282146555,0.001832,60935.0,60934.0,3.31689894]
[1723282146759,0.001832,60935.0,60934.0,3.44396212]
[1723282146976,0.001832,60935.0,60934.0,3.29743358]
[1723282147177,0.001832,60935.0,60934.0,3.31689894]
[1723282147378,0.000832,60935.0,60934.0,3.17069894]
[1723282147582,0.000832,60935.0,60934.0,3.2315275]
[1723282147949,0.000832,60935.0,60934.0,3.2455275]
[1723282148421,0.000832,60935.0,60934.0,3.09898794]
[1723282148649,0.000832,60935.0,60934.0,3.24554248]
[1723282149403,0.000832,60935.0,60934.0,2.79245903]
[1723282149634,0.000832,60935.0,60934.0,3.09898936]
[1723282150027,0.000832,60935.0,60934.0,3.09898933]
[1723282150659,0.000832,60935.0,60934.0,3.26310033]
[1723282151081,0.000832,60935.0,60934.0,2.9225111]
[1723282151281,0.000832,60935.0,60934.0,3.02338933]
[1723282151696,0.000832,60935.0,60934.0,2.94498933]
[1723282152230,0.000832,60935.0,60934.0,3.18750033]
[1723282152459,0.000832,60935.0,60934.0,3.16803497]
[1723282153124,0.000832,60935.0,60934.0,3.16803551]
[1723282153550,0.000832,60935.0,60934.0,3.00392451]
[1723282153888,0.000832,60935.0,60934.0,3.02338987]
[1723282154092,0.000832,60935.0,60934.0,3.00392451]
[1723282154278,0.000832,60935.0,60934.0,3.18750087]
[1723282157326,0.000832,60935.0,60934.0,3.40394295]
[1723282158422,0.000832,60935.0,60934.0,3.18750087]
[1723282159052,0.000832,60935.0,60934.0,2.84691164]
[1723282159255,0.000832,60935.0,60934.0,3.18749118]
[1723282159452,0.0615,60942.0,60941.0,1.01037636]
[1723282159636,0.0615,60942.0,60941.0,2.36846382]
[1723282160019,0.0615,60942.0,60941.0,2.37683532]
[1723282160215,0.0615,60942.0,60941.0,2.17248103]
[1723282160456,0.0615,60942.0,60941.0,2.58117781]
[1723282160972,0.0615,60942.0,60941.0,2.39082937]
[1723282161177,0.0615,60942.0,60941.0,2.50748658]
[1723282161914,0.000832,60944.0,60943.0,0.76585636]
[1723282162169,0.000832,60944.0,60943.0,2.12391787]
[1723282162474,0.000832,60944.0,60943.0,2.11481993]
[1723282162790,0.000832,60944.0,60943.0,2.13428529]
[1723282162988,0.000832,60944.0,60943.0,2.21747714]
[1723282163189,0.000832,60944.0,60943.0,2.23147714]
[1723282163777,0.000832,60944.0,60943.0,1.65249055]
[1723282163956,0.000832,60944.0,60943.0,2.23147404]
[1723282164297,0.000832,60944.0,60943.0,2.24547404]
[1723282164651,0.000832,60944.0,60943.0,2.2629394]
[1723282164857,0.000832,60944.0,60943.0,2.2649394]
[1723282166224,0.000832,60944.0,60943.0,2.27472541]
[1723282166428,0.141032,60944.0,60943.0,2.27472541]
[1723282171406,0.141032,60944.0,60943.0,1.69574192]
[1723282171602,0.141032,60944.0,60943.0,2.27472541]
[1723282172772,0.141032,60944.0,60943.0,1.93414688]
[1723282172927,0.141032,60944.0,60943.0,2.27472541]
[1723282174542,0.141032,60944.0,60943.0,2.27472546]
[1723282176083,0.141032,60944.0,60943.0,2.2552601]
[1723282176432,0.141032,60944.0,60943.0,2.0581731]
[1723282177707,0.141032,60944.0,60943.0,2.04838709]
[1723282178024,0.141032,60944.0,60943.0,2.04842835]
[1723282178178,0.141032,60944.0,60943.0,1.94577114]
[1723282181017,0.141032,60944.0,60943.0,1.94577409]
[1723282182277,0.141032,60944.0,60943.0,1.94577616]
[1723282184089,0.141032,60944.0,60943.0,2.06834649]
[1723282185269,0.141032,60944.0,60943.0,2.06834812]
[1723282188878,0.141032,60944.0,60943.0,1.94577779]
[1723282190554,0.141032,60944.0,60943.0,2.06829575]
[1723282191292,0.141032,60944.0,60943.0,2.04379808]
[1723282191894,0.141032,60944.0,60943.0,2.02979808]
[1723282192103,0.141032,60944.0,60943.0,1.6891923]
[1723282192278,0.141032,60944.0,60943.0,2.03480882]
[1723282192479,0.141032,60944.0,60943.0,2.01580882]
[1723282192675,0.141032,60944.0,60943.0,2.01581299]
[1723282192913,0.141032,60944.0,60943.0,2.02581299]
[1723282193412,0.141032,60944.0,60943.0,2.02881299]
[1723282193956,0.141032,60944.0,60943.0,2.02581299]
[1723282194158,0.141032,60944.0,60943.0,2.03381299]
[1723282195122,0.141032,60944.0,60943.0,2.02381299]
[1723282195502,0.141032,60944.0,60943.0,2.03381299]
[1723282195692,0.141032,60944.0,60943.0,2.02581021]
[1723282196011,0.141032,60944.0,60943.0,2.03381021]
[1723282197575,0.141032,60944.0,60943.0,2.02581021]
[1723282198158,0.141032,60944.0,60943.0,2.01581021]
[1723282198495,0.141032,60944.0,60943.0,2.02681021]
[1723282198775,0.141032,60944.0,60943.0,2.01581021]
[1723282199106,0.141032,60944.0,60943.0,2.03681021]
[1723282199235,0.141032,60944.0,60943.0,1.86650327]
[1723282199441,0.141032,60944.0,60943.0,2.02881021]
[1723282199816,0.141032,60944.0,60943.0,2.02681021]
[1723282200018,0.141032,60944.0,60943.0,2.04081021]
[1723282200381,0.141032,60944.0,60943.0,2.04071907]
[1723282200584,0.141032,60944.0,60943.0,2.02971907]
[1723282200997,0.141032,60944.0,60943.0,2.04171907]
[1723282201399,0.141032,60944.0,60943.0,2.02771907]
[1723282201812,0.141032,60944.0,60943.0,1.80328936]
[1723282201951,0.141032,60944.0,60943.0,1.77348298]
[1723282202155,0.141032,60944.0,60943.0,1.62523775]
[1723282202361,0.141032,60944.0,60943.0,1.93179265]
[1723282203060,0.141032,60944.0,60943.0,1.94379265]
[1723282204060,0.000832,60944.0,60943.0,2.19374501]
[1723282204386,0.000832,60944.0,60943.0,2.18627965]
[1723282205241,0.000832,60944.0,60943.0,1.94832069]
[1723282205417,0.000832,60944.0,60943.0,2.2888975]
[1723282206671,0.000832,60944.0,60943.0,2.45706286]
[1723282206822,0.000832,60944.0,60943.0,2.4605975]
[1723282207018,0.000832,60944.0,60943.0,2.3970975]
[1723282208016,0.000832,60944.0,60943.0,2.3830975]
[1723282208405,0.000832,60944.0,60943.0,2.3710975]
[1723282208605,0.000832,60944.0,60943.0,2.3850975]
[1723282208811,0.000832,60944.0,60943.0,2.22680265]
[1723282209011,0.000832,60944.0,60943.0,2.38309261]
[1723282209213,0.000832,60944.0,60943.0,2.40255797]
[1723282209410,0.000832,60944.0,60943.0,2.40455797]
[1723282209617,0.000832,60944.0,60943.0,2.39909261]
[1723282210598,0.000832,60944.0,60943.0,2.32389261]
[1723282211580,0.000832,60944.0,60943.0,2.21249261]
[1723282211815,0.149032,60944.0,60943.0,2.21249261]
[1723282212365,0.149032,60944.0,60943.0,2.04219945]
[1723282212646,0.149032,60944.0,60943.0,2.21249512]
[1723282212846,0.149032,60944.0,60943.0,2.21249454]
[1723282214042,0.149032,60944.0,60943.0,2.21249402]
[1723282215892,0.149032,60944.0,60943.0,2.10983804]
[1723282216302,0.149032,60944.0,60943.0,2.18823804]
[1723282216477,0.000832,60944.0,60943.0,2.29089563]
[1723282216954,0.000832,60944.0,60943.0,2.29836099]
[1723282217312,0.000832,60944.0,60943.0,2.29089563]
[1723282217464,0.000832,60944.0,60943.0,2.29836099]
[1723282217803,0.000832,60944.0,60943.0,2.30089563]
[1723282218009,0.000832,60944.0,60943.0,2.32389563]
[1723282218191,0.000832,60944.0,60943.0,2.34136099]
[1723282218518,0.000832,60944.0,60943.0,2.32389563]
[1723282219073,0.000832,60944.0,60943.0,2.34336099]
[1723282219437,0.000832,60944.0,60943.0,2.34334633]
[1723282220229,0.000832,60944.0,60943.0,1.93464748]
[1723282220815,0.000832,60944.0,60943.0,1.74489093]
[1723282222412,0.000832,60944.0,60943.0,2.3238772]
[1723282222614,0.000832,60944.0,60943.0,1.76235629]
[1723282222813,0.000832,60944.0,60943.0,1.74489093]
[1723282223516,0.000832,60944.0,60943.0,1.76435629]
[1723282223722,0.000832,60944.0,60943.0,2.10493624]
[1723282223947,0.000832,60944.0,60943.0,1.83247228]
[1723282224345,0.061632,60944.0,60943.0,1.83247228]
[1723282224545,0.000832,60944.0,60943.0,1.83247228]
[1723282225511,0.000832,60944.0,60943.0,2.15358672]
[1723282225870,0.000832,60944.0,60943.0,2.17305208]
[1723282226075,0.000832,60944.0,60943.0,2.47913908]
[1723282226429,0.082851,60945.0,60944.0,0.84694736]
[1723282226634,0.082851,60945.0,60944.0,2.31501212]
[1723282226805,0.082851,60945.0,60944.0,2.48649685]
[1723282227019,0.00019873,60980.0,60961.0,0.25348436]
[1723282227221,0.00019873,60980.0,60962.0,0.59705536]
[1723282227421,0.00019873,60980.0,60965.0,0.51793536]
[1723282227622,0.00019873,60980.0,60965.0,2.14269776]
[1723282227827,0.00019873,60980.0,60965.0,2.31385466]
[1723282228145,0.00019873,60980.0,60965.0,2.31382042]
[1723282228381,0.00019873,60980.0,60968.0,1.00997536]
[1723282228535,0.00019873,60980.0,60977.0,0.35455936]
[1723282228740,0.00019873,60980.0,60977.0,2.14843466]
[1723282228943,0.00019873,60980.0,60977.0,2.61665611]
[1723282229120,0.00019873,60980.0,60979.0,0.84452036]
[1723282229324,7.3e-07,60980.0,60979.0,2.37124288]
[1723282229520,0.001873,60988.0,60987.0,0.90932536]
[1723282229722,0.001873,60988.0,60987.0,1.9828503]
[1723282230076,0.001873,60988.0,60987.0,1.5771211]
[1723282230273,0.001873,60988.0,60987.0,1.4730443]
[1723282230425,0.084873,60988.0,60987.0,1.2090753]
[1723282230647,0.084873,60988.0,60987.0,0.63533838]
[1723282230648,0.23019064,60988.0,60987.0,0.63533838]
[1723282230854,0.23019064,60988.0,60987.0,0.4991064]
[1723282231049,0.23019064,60988.0,60987.0,0.5131064]
[1723282231271,0.23019064,60988.0,60987.0,0.4991064]
[1723282231471,0.14820764,60988.0,60987.0,0.4991064]
[1723282231689,0.14820764,60988.0,60987.0,0.5031064]
[1723282231855,0.14820764,60988.0,60987.0,0.5101064]
[1723282232259,0.14820764,60988.0,60987.0,0.5151064]
[1723282232521,0.14820764,60988.0,60987.0,0.7500594]
[1723282232930,0.14820764,60988.0,60987.0,0.5071064]
[1723282233211,0.14820764,60988.0,60987.0,0.5890904]
[1723282233418,0.14820764,60988.0,60987.0,0.7530594]
[1723282233590,0.14820764,60988.0,60987.0,0.9170284]
[1723282233790,0.145673,60988.0,60987.0,0.91687432]
[1723282233990,0.145673,60988.0,60987.0,1.07284332]
[1723282234988,0.145673,60988.0,60987.0,1.23881232]
[1723282235186,0.145673,60988.0,60987.0,1.37296027]
[1723282235633,0.145673,60988.0,60987.0,1.37496027]
[1723282235991,0.145673,60988.0,60987.0,1.37296027]
[1723282237079,0.001873,60988.0,60987.0,1.38042563]
[1723282237306,0.001873,60988.0,60987.0,1.48296027]
[1723282237437,0.001873,60988.0,60987.0,1.50796027]
[1723282237831,0.001873,60988.0,60987.0,1.50596027]
[1723282238036,0.001873,60988.0,60987.0,1.60176527]
[1723282238458,0.001873,60988.0,60987.0,1.45361732]
[1723282238689,0.001873,60988.0,60987.0,1.75671582]
[1723282238931,0.001873,60988.0,60987.0,1.76771582]
[1723282239142,0.001873,60988.0,60987.0,1.75471534]
[1723282239350,0.001873,60988.0,60987.0,1.60474634]
[1723282239729,0.001873,60988.0,60987.0,1.76871534]
[1723282239942,0.001873,60988.0,60987.0,1.60474634]
[1723282240638,0.001873,60988.0,60987.0,1.52564634]
[1723282240860,0.001873,60988.0,60987.0,1.51464634]
[1723282241016,0.001873,60988.0,60987.0,1.51364634]
[1723282241433,0.001873,60988.0,60987.0,1.52764634]
[1723282241639,0.001873,60988.0,60987.0,1.66461534]
[1723282241838,0.001873,60988.0,60987.0,1.51364634]
[1723282242048,0.001873,60988.0,60987.0,1.52764634]
[1723282242251,0.001873,60988.0,60987.0,1.51364634]
[1723282242410,0.001873,60988.0,60987.0,1.5181117]
[1723282242613,0.001873,60988.0,60987.0,1.5461117]
[1723282242812,0.001873,60988.0,60987.0,1.5341117]
[1723282243450,0.001873,60988.0,60987.0,1.6980807]
[1723282243997,0.001873,60988.0,60987.0,1.5341117]
[1723282244370,0.002704,60988.0,60987.0,1.5471117]
[1723282244575,0.002704,60988.0,60987.0,1.5331117]
[1723282244771,0.002704,60988.0,60987.0,1.5471117]
[1723282244994,0.002704,60988.0,60987.0,1.5341117]
[1723282245354,0.002704,60988.0,60987.0,1.5481117]
[1723282245559,0.002704,60988.0,60987.0,1.53411431]
[1723282245779,0.002704,60988.0,60987.0,1.52011431]
[1723282245959,0.002704,60988.0,60987.0,1.53411431]
[1723282246155,0.002704,60988.0,60987.0,1.54811431]
[1723282246569,0.002704,60988.0,60987.0,1.41198268]
[1723282246769,0.002704,60988.0,60987.0,1.54811376]
[1723282247373,0.002704,60988.0,60987.0,1.52011376]
[1723282247631,0.002704,60988.0,60987.0,1.5146484]
[1723282247855,0.002704,60988.0,60987.0,1.5286484]
[1723282248031,0.002704,60988.0,60987.0,1.5146484]
[1723282248279,0.002704,60988.0,60987.0,1.53211376]
[1723282248449,0.002704,60988.0,60987.0,1.5006484]
[1723282248660,0.002704,60988.0,60987.0,1.5146484]
[1723282248807,0.002704,60988.0,60987.0,1.5286484]
[1723282249027,0.002704,60988.0,60987.0,1.36451732]
[1723282249226,0.002704,60988.0,60987.0,1.50064837]
[1723282249489,0.002704,60988.0,60987.0,1.51464837]
[1723282249695,0.002704,60988.0,60987.0,1.37851732]
[1723282249976,0.002704,60988.0,60987.0,1.53211373]
[1723282250173,0.002704,60988.0,60987.0,1.53411373]
[1723282250372,0.002704,60988.0,60987.0,1.69808273]
[1723282250671,0.002704,60988.0,60987.0,1.53211373]
[1723282250900,0.002704,60988.0,60987.0,1.68208273]
[1723282251183,0.002704,60988.0,60987.0,1.54611373]
[1723282251606,0.002704,60988.0,60987.0,1.53211373]
[1723282251754,0.002704,60988.0,60987.0,1.54611373]
[1723282252848,0.002704,60988.0,60987.0,1.71008273]
[1723282253507,0.002704,60988.0,60987.0,1.7503103]
[1723282254030,0.002704,60988.0,60987.0,1.73284494]
[1723282254224,0.002704,60988.0,60987.0,1.7523103]
[1723282254426,0.002704,60988.0,60987.0,1.7503103]
[1723282255412,0.002704,60988.0,60987.0,1.7471103]
[1723282255618,0.002704,60988.0,60987.0,1.7331103]
[1723282255841,0.002704,60988.0,60987.0,1.9713388]
[1723282256253,0.002704,60988.0,60987.0,1.95387344]
[1723282256461,0.002704,60988.0,60987.0,1.97133816]
[1723282257018,0.002704,60988.0,60987.0,1.98625226]
[1723282257223,0.002704,60988.0,60987.0,1.97425226]
[1723282257482,0.002704,60988.0,60987.0,1.96025226]
[1723282257642,0.002704,60988.0,60987.0,1.97425226]
[1723282258309,0.002704,60988.0,60987.0,1.98825226]
[1723282258513,0.002704,60988.0,60987.0,1.97425226]
[1723282258684,0.002704,60988.0,60987.0,2.15222126]
[1723282258938,0.002704,60988.0,60987.0,1.98825226]
[1723282259887,0.002704,60988.0,60987.0,1.88599253]
[1723282260097,0.002704,60988.0,60987.0,2.12421945]
[1723282260334,0.002704,60988.0,60987.0,2.45853868]
[1723282260479,0.00831,60991.0,60988.0,0.76731236]
[1723282260672,0.00831,60991.0,60988.0,2.94556139]
[1723282260918,0.00831,60991.0,60988.0,2.95290611]
[1723282261375,0.00831,60991.0,60988.0,2.95474229]
[1723282262093,0.00831,60991.0,60990.0,0.76728936]
[1723282262302,0.377162,60999.0,60998.0,0.43731236]
[1723282262482,0.06497569,60999.0,60998.0,2.85558786]
[1723282262675,0.00019894,61003.0,60999.0,0.84208136]
[1723282262676,0.00969569,61000.0,60999.0,0.84208136]
[1723282262963,0.00969569,61000.0,60999.0,3.58429112]
[1723282263108,0.00969569,61000.0,60999.0,3.18178857]
[1723282263293,0.00969569,61000.0,60999.0,2.26194965]
[1723282263489,0.00969569,61000.0,60999.0,2.00265982]
[1723282263693,0.00969569,61000.0,60999.0,2.07528676]
[1723282263892,0.00969569,61000.0,60999.0,2.07529108]
[1723282264092,0.00969569,61000.0,60999.0,2.07182572]
[1723282264426,0.00969569,61000.0,60999.0,2.04058245]
[1723282264646,0.00969569,61000.0,60999.0,2.01258245]
[1723282265056,0.00969569,61000.0,60999.0,2.04058245]
[1723282265436,0.00969569,61000.0,60999.0,2.02066414]
[1723282265437,0.08559569,61000.0,60999.0,2.02066414]
[1723282265637,0.08559569,61000.0,60999.0,1.95261707]
[1723282265845,0.08559569,61000.0,60999.0,2.02714975]
[1723282266046,0.08559569,61000.0,60999.0,1.89106425]
[1723282266272,0.00969569,61000.0,60999.0,2.20856512]
[1723282266429,0.00969569,61000.0,60999.0,2.25906512]
[1723282266642,0.00969569,61000.0,60999.0,2.28706512]
[1723282266852,0.00019894,61003.0,61002.0,0.93107436]
[1723282267064,0.00019894,61003.0,61002.0,2.24337937]
[1723282267308,0.00019894,61003.0,61002.0,3.04283621]
[1723282267512,0.00019894,61003.0,61002.0,2.90217598]
[1723282267688,0.00019894,61003.0,61002.0,2.97021335]
[1723282267894,9.4e-07,61005.0,61004.0,0.76711836]
[1723282268087,9.4e-07,61005.0,61004.0,3.08029864]
[1723282268294,9.4e-07,61005.0,61004.0,3.03967326]
[1723282268526,0.0001,61009.0,61008.0,0.76706936]
[1723282268726,0.0001,61009.0,61008.0,2.19444628]
[1723282268952,0.0001,61009.0,61008.0,2.03871857]
[1723282269198,0.0001,61009.0,61008.0,1.99025955]
[1723282269599,0.0001,61009.0,61008.0,1.99023875]
[1723282270186,0.0001,61009.0,61008.0,1.85414025]
[1723282270300,0.0001,61009.0,61008.0,1.99020978]
[1723282270936,0.0001,61009.0,61008.0,2.18212178]
[1723282271157,0.0001,61009.0,61008.0,2.89923341]
[1723282271403,0.0001,61009.0,61008.0,2.8992308]
[1723282271603,0.0001,61009.0,61008.0,2.7213188]
[1723282272322,0.0001,61009.0,61008.0,2.84276809]
[1723282272477,0.0001,61009.0,61008.0,2.67885344]
[1723282272821,0.0637,61009.0,61008.0,1.89404425]
[1723282272962,0.0001,61009.0,61008.0,1.91385996]
[1723282273159,0.0001,61009.0,61008.0,1.8512258]
[1723282274009,0.0001,61009.0,61008.0,1.8742258]
[1723282274192,0.0001,61009.0,61008.0,1.8882258]
[1723282274394,0.0001,61009.0,61008.0,1.8742258]
[1723282274615,0.0001,61009.0,61008.0,1.89796338]
[1723282274932,0.0001,61009.0,61008.0,1.88824415]
[1723282275312,0.0001,61009.0,61008.0,1.76677207]
[1723282275486,0.0001,61009.0,61008.0,1.75677207]
[1723282275690,0.0779,61009.0,61008.0,1.75277207]
[1723282276125,0.0779,61009.0,61008.0,1.78765915]
[1723282276302,0.0779,61009.0,61008.0,1.79277074]
[1723282276502,0.0779,61009.0,61008.0,1.80277074]
[1723282276808,0.0779,61009.0,61008.0,1.81677125]
[1723282277182,0.0779,61009.0,61008.0,1.88481069]
[1723282277724,0.0779,61009.0,61008.0,1.96790605]
[1723282277924,0.0779,61009.0,61008.0,2.34212263]
[1723282278137,0.0779,61009.0,61008.0,2.34412263]
[1723282278378,0.0779,61009.0,61008.0,2.3441379]
[1723282278631,0.0001,61009.0,61008.0,2.3441379]
[1723282279323,0.0001,61009.0,61008.0,2.32326354]
[1723282280422,0.0001,61009.0,61008.0,2.32326336]
[1723282280885,0.0001,61009.0,61008.0,2.32326253]
[1723282281323,0.0001,61009.0,61008.0,2.298978]
[1723282281776,0.000931,61009.0,61008.0,2.298978]
[1723282281990,0.000931,61009.0,61008.0,2.27951264]
[1723282282218,0.000931,61009.0,61008.0,2.08260064]
[1723282282219,0.142331,61009.0,61008.0,2.08260064]
[1723282282610,0.14486564,61009.0,61008.0,0.91008949]
[1723282282830,0.14486564,61009.0,61008.0,0.82813349]
[1723282283475,0.14486564,61009.0,61008.0,0.88208949]
[1723282283908,0.14486564,61009.0,61008.0,1.04700149]
[1723282284141,0.14486564,61009.0,61008.0,1.04600149]
[1723282284435,0.14486564,61009.0,61008.0,1.20991349]
[1723282284436,0.142331,61009.0,61008.0,1.20991349]
[1723282284683,0.142331,61009.0,61008.0,1.37382549]
[1723282284925,0.14486564,61009.0,61008.0,1.37382549]
[1723282285186,0.142331,61009.0,61008.0,1.37382549]
[1723282285425,0.142331,61009.0,61008.0,1.21091349]
[1723282285657,0.14586564,61009.0,61008.0,1.21091349]
[1723282285891,0.143331,61009.0,61008.0,1.20991349]
[1723282286140,0.142331,61009.0,61008.0,1.08083492]
[1723282286401,0.142331,61009.0,61008.0,1.07383492]
[1723282286621,0.142331,61009.0,61008.0,1.08083492]
[1723282286790,0.14486564,61009.0,61008.0,1.08083492]
[1723282287010,0.142331,61009.0,61008.0,1.07483492]
[1723282287168,0.142331,61009.0,61008.0,0.91292292]
[1723282287528,0.142331,61009.0,61008.0,1.07683492]
[1723282287689,0.142331,61009.0,61008.0,1.04903143]
[1723282287884,0.142331,61009.0,61008.0,1.21294343]
[1723282288870,0.142331,61009.0,61008.0,1.21494343]
[1723282289071,0.142331,61009.0,61008.0,1.20994343]
[1723282289981,0.142331,61009.0,61008.0,1.21194343]
[1723282290448,0.142331,61009.0,61008.0,1.07583492]
[1723282290617,0.142331,61009.0,61008.0,1.08083492]
[1723282292469,0.142331,61009.0,61008.0,1.08483492]
[1723282293181,4e-07,61013.0,61012.0,0.30620836]
[1723282293484,0.0026192,61022.0,61021.0,0.43716036]
[1723282293663,0.0026192,61022.0,61021.0,1.75427229]
[1723282293866,0.0026192,61022.0,61021.0,2.23228877]
[1723282295090,0.0026192,61022.0,61021.0,2.28088527]
[1723282295306,0.0026192,61022.0,61021.0,2.22228877]
[1723282295509,0.0026192,61022.0,61021.0,2.27088527]
[1723282295708,0.0026192,61022.0,61021.0,2.22228877]
[1723282295965,0.0026192,61022.0,61021.0,2.25028877]
[1723282296146,0.0026192,61022.0,61021.0,2.23628877]
[1723282296657,0.0026192,61022.0,61021.0,2.54953358]
[1723282296859,0.0026192,61022.0,61021.0,2.4976728]
[1723282297074,0.0026192,61022.0,61021.0,2.73574075]
[1723282297203,0.0026192,61022.0,61021.0,2.69244227]
[1723282297404,0.0026192,61022.0,61021.0,2.61036537]
[1723282297635,0.0026192,61022.0,61021.0,2.69238327]
[1723282297848,0.0026192,61022.0,61021.0,2.63793683]
[1723282298344,0.0026192,61022.0,61021.0,2.5870898]
[1723282298555,0.0026192,61022.0,61021.0,2.34902688]
[1723282298756,0.0026192,61022.0,61021.0,2.58708894]
[1723282298962,0.0026192,61022.0,61021.0,2.60108894]
[1723282299134,0.0026192,61022.0,61021.0,2.58708894]
[1723282300036,0.0026192,61022.0,61021.0,2.60108894]
[1723282300285,0.0026192,61022.0,61021.0,2.58708894]
[1723282300491,0.0026192,61022.0,61021.0,2.41704454]
[1723282300684,0.0026192,61022.0,61021.0,2.60108639]
[1723282301854,0.00019881,61043.0,61042.0,0.747194]
[1723282302075,0.00019881,61043.0,61042.0,1.6874698]
[1723282302240,0.00019881,61043.0,61042.0,1.86205518]
[1723282302443,0.00019881,61043.0,61042.0,1.69823418]
[1723282302650,0.00019881,61043.0,61042.0,1.68076882]
[1723282302875,0.00019881,61043.0,61042.0,1.69823418]
[1723282303289,0.00019881,61043.0,61042.0,1.71223418]
[1723282303436,0.00019881,61043.0,61042.0,1.72823418]
[1723282303641,0.00019881,61043.0,61042.0,1.71223418]
[1723282304047,0.00019881,61043.0,61042.0,1.72623418]
[1723282304248,0.00019881,61043.0,61042.0,1.72823418]
[1723282304641,0.00019881,61043.0,61042.0,1.51194782]
[1723282304823,0.08049881,61043.0,61042.0,1.51194782]
[1723282305021,0.08049881,61043.0,61042.0,1.50118344]
[1723282306082,0.08132981,61043.0,61042.0,1.50118344]
[1723282306910,0.08132981,61043.0,61042.0,1.48718344]
[1723282307040,0.08132981,61043.0,61042.0,1.4806488]
[1723282307245,0.08132981,61043.0,61042.0,1.34914792]
[1723282307473,0.08132981,61043.0,61042.0,1.49916111]
[1723282307677,0.14332981,61043.0,61042.0,1.36314792]
[1723282307832,0.14332981,61043.0,61042.0,1.49917048]
[1723282308637,0.14332981,61043.0,61042.0,1.48517048]
[1723282308856,0.14332981,61043.0,61042.0,1.47317048]
[1723282309088,0.14332981,61043.0,61042.0,1.48017228]
[1723282309290,0.14332981,61043.0,61042.0,1.47717228]
[1723282309759,0.14332981,61043.0,61042.0,1.48117228]
[1723282309966,0.14332981,61043.0,61042.0,1.47317228]
[1723282310162,0.14332981,61043.0,61042.0,1.47817228]
[1723282310410,0.14332981,61043.0,61042.0,1.48617228]
[1723282310817,0.14332981,61043.0,61042.0,1.48117482]
[1723282312316,0.14332981,61043.0,61042.0,1.48617482]